[Event "44th Chess Olympiad Open 2022"]
[Site "Chennai"]
[Date "2022.08.08"]
[Round "10.14"]
[White "Suleymenov, Alisher"]
[Black "Brkic, Ante"]
[Result "1-0"]
[ECO "D38"]
[WhiteElo "2467"]
[BlackElo "2611"]
[Annotator "TA"]
[PlyCount "93"]
[EventDate "2022.07.29"]
[EventType "team-tourn"]
[EventCountry "IND"]
[SourceTitle "playchess.com"]
[Source "ChessBase"]
[SourceQuality "1"]
[WhiteTeam "Kazakhstan"]
[BlackTeam "Croatia"]
[WhiteTeamCountry "KAZ"]
[BlackTeamCountry "CRO"]
[TimeControl "40/5400+30:1800+30"]

{[%evp 14,93,12,8,16,12,15,15,12,20,9,27,10,6,15,11,17,9,22,20,16,19,15,6,11,16,20,18,10,23,58,58,45,47,60,54,68,77,67,68,66,60,84,76,91,64,129,145,178,137,183,191,267,275,281,307,301,286,292,284,286,283,463,416,427,429,426,393,1022,1032,975,1029,1009,996,997,986,959,954,956,939,786,216]} 1. d4 {[%emt 0:00:04]} Nf6 {[%emt 0:00:06]} 2. c4 {[%emt 0:00:05]} e6 {[%emt 0:00:06]} 3. Nf3 {[%emt 0:00:04]} d5 {[%emt 0:00:07]} 4. Nc3 {[%emt 0:00:06]} Bb4 {[%emt 0:00:11]} 5. Bg5 {[%emt 0:00:13]} h6 {[%emt 0:12:17]} 6. Bxf6 {[%emt 0:00:08]} Qxf6 {[%emt 0:00:04]} 7. Qa4+ {[%emt 0:00:07]} Nc6 {[%emt 0:00:08]} 8. e3 {[%emt 0:00:05]} O-O {[%emt 0:00:15] D38: Queen's Gambit Declined: Ragozin Defence (4 Nf3 Bb4).} 9. Be2 {[%emt 0:00:06]} dxc4 {[%emt 0:04:33]} 10. O-O {[%emt 0:00:07]} Bd7 {[%emt 0:00:56] The position is equal.} 11. Bxc4 {[%emt 0:00:19]} Bxc3 {[%emt 0:00:08]} 12. bxc3 {[%emt 0:00:04]} Rfd8 {[%emt 0:00:28][%cal Oc6d4] Hoping for ...Nxd4!} 13. Be2 {[%emt 0:00:09]} Be8 {[%emt 0:01:26][%cal Oc6d4] ...Nxd4! is the strong threat.} 14. Qa3 {[%emt 0:00:11]} Qe7 {[%emt 0:00:36]} 15. Qb2 {[%emt 0:00:05]} b6 {[%emt 0:00:23]} 16. c4 {[%emt 0:00:14]} Na5 {[%emt 0:01:00]} 17. e4 {[%emt 0:00:21]} Qf6 {[%emt 0:03:57]} 18. Qd2 {[%emt 0:00:11]} e5 {[%emt 0:11:58][%cal Re5d4]} 19. d5 {[%emt 0:00:59]} Bd7 {[%emt 0:00:05]} 20. Qb2 {[%emt 0:00:04]} Bg4 {[%emt 0:19:28]} 21. Ne1 {[%emt 0:01:47] [#]} Bd7 $146 {[%emt 0:02:52]} ({Predecessor:} 21... Bxe2 22. Qxe2 Rac8 23. Nc2 c6 24. Rac1 Rc7 25. Ne3 Nb7 26. Rfd1 Nd6 27. Qd3 Qg6 {½-½ (47) Moriarty,A (2336)-Bragesjoe,T (2210) ICCF email 2021}) 22. Rc1 {[%emt 0:11:30]} Nb7 {[%emt 0:03:33]} 23. f4 {[%emt 0:14:47]} Re8 {[%emt 0:00:33]} 24. Nd3 {[%emt 0:01:08]} Nc5 {[%emt 0:00:23]} 25. Nxc5 {[%emt 0:05:50]} (25. Nxe5 Nxe4 26. Bd1 Nc5 $11) 25... bxc5 {[%emt 0:00:04]} 26. Rb1 {[%emt 0:16:42]} Qd6 {[%emt 0:16:04]} 27. f5 {[%emt 0:00:13]} a5 {[%emt 0:01:22] White leaves nothing to chance now.} 28. f6 {[%emt 0:04:56]} gxf6 {[%emt 0:04:11]} 29. Qd2 {[%emt 0:02:21]} (29. Bh5 {feels hotter.} Kg7 30. Rf3 Qe7 31. Qb7) 29... f5 {[%emt 0:00:01]} (29... Kh7 $14) 30. exf5 $16 {[%emt 0:00:25][%cal Be4f5,Bf5f6][%mdl 32]} e4 {[%emt 0:00:55]} 31. Qe3 {[%emt 0:08:59]} Re5 {[%emt 0:08:42]} (31... a4 $16 {was necessary.} 32. f6 Kh7) 32. f6 $18 {[%emt 0:00:48]} Rg5 {[%emt 0:00:01]} (32... Kh7 {is a better defense.} 33. Rf4 (33. Qg3 Rg8 $11) 33... Rg8) 33. Rf4 $1 {[%emt 0:01:44] Threatens to win with Rbf1.} (33. Qxe4 Re8 34. Qd3 Qe5 $14) 33... Qe5 {[%emt 0:03:33]} 34. h4 $1 {[%emt 0:13:58]} (34. Qxe4 Qxe4 35. Rxe4 Bf5 $11) (34. Rxe4 $6 Qxf6 35. Bf3 (35. Qxc5 Bf5 $17) 35... Rf8 $16) 34... Rg6 {[%emt 0:00:06]} 35. Rxe4 {[%emt 0:00:32]} Qxf6 {[%emt 0:00:18]} 36. Bh5 {[%emt 0:00:13]} (36. Qxc5 Bf5 37. Rf1 Rxg2+ $1 38. Kxg2 Bxe4+ 39. Kg1 Qg7+ 40. Kf2 Qf6+ 41. Kg1 Qg7+ 42. Kf2 Kh8 $17) 36... Rg7 {[%emt 0:00:15] [#]} 37. Rf1 {[%emt 0:00:54] Prevents Qf5.} ({But not} 37. Qxc5 $2 Qf5 38. Bxf7+ (38. Qe7 $2 Re8 $19) 38... Rxf7 $19) 37... Qd6 {[%emt 0:03:07] [#]} (37... Qb2 38. Bxf7+ Rxf7) 38. Rxf7 $1 {[%emt 0:04:50][%mdl 512] Active counter play!} Rxf7 {[%emt 0:00:19]} 39. Bxf7+ {[%emt 0:00:05]} Kxf7 {[%emt 0:00:12]} 40. Rf4+ {[%emt 0:00:06]} Kg8 $2 {[%emt 0:04:59]} (40... Bf5 41. Rxf5+ Kg8) 41. Qg3+ {[%emt 0:30:38] White is clearly winning.} Kh8 {[%emt 0:30:14]} 42. Qc3+ {[%emt 0:00:21]} Kg8 {[%emt 0:00:00]} 43. Rf6 {[%emt 0:00:00]} Qe7 {[%emt 0:00:00] [#]} 44. Qg3+ $1 {[%emt 0:00:00]} ({And not} 44. Rxh6 Qg7 45. Qf6 Qxf6 46. Rxf6 Kg7 $19) 44... Kh7 {[%emt 0:00:00]} 45. Qg6+ {[%emt 0:00:00][%mdl 64] Deflection, Double Attack} Kh8 {[%emt 0:00:00]} 46. Qxh6+ {[%emt 0:00:00]} Qh7 {[%emt 0:00:00]} 47. Qxh7+ $2 {[%emt 0:00:53] Weighted Error Value: White=0.02 (flawless) /Black=0.19 (very precise)} (47. Qg5) 1-0

[Event "44th Chess Olympiad Open 2022"]
[Site "Chennai"]
[Date "2022.08.08"]
[Round "10.14"]
[White "Nogerbek, Kazybek"]
[Black "Bosiocic, Marin"]
[Result "1/2-1/2"]
[ECO "E15"]
[WhiteElo "2437"]
[BlackElo "2549"]
[Annotator "TA"]
[PlyCount "149"]
[EventDate "2022.07.29"]
[EventType "team-tourn"]
[EventCountry "IND"]
[SourceTitle "playchess.com"]
[Source "ChessBase"]
[SourceQuality "1"]
[WhiteTeam "Kazakhstan"]
[BlackTeam "Croatia"]
[WhiteTeamCountry "KAZ"]
[BlackTeamCountry "CRO"]
[TimeControl "40/5400+30:1800+30"]

{[%evp 19,149,16,25,-4,16,10,19,0,0,13,6,4,18,0,0,0,0,0,0,0,0,0,0,0,0,0,0,0,43,-20,-18,0,0,-21,-12,-15,-17,-24,0,-43,-22,-22,-18,-20,-14,-211,-211,-204,-163,-517,-515,-506,-488,-808,-798,-791,-665,-669,-222,-222,-222,-222,-222,-222,-222,-216,0,0,0,0,0,0,0,0,0,-91,-91,-91,-91,-91,-91,-91,-91,-91,-91,-91,-49,-49,-49,-91,-91,-91,-91,-91,-91,-91,-91,-91,-70,-70,-70,-70,-70,-70,-70,-70,-70,-70,-70,-70,-70,-70,-70,-70,-70,-70,-70,-70,-70,-70,-70,-70,0,-70,0,-70,-20,-20,-20,-20,-20,-20]} 1. d4 {[%emt 0:00:08]} Nf6 {[%emt 0:00:08]} 2. c4 {[%emt 0:00:10]} e6 {[%emt 0:00:07]} 3. Nf3 {[%emt 0:00:08]} b6 {[%emt 0:00:32]} 4. g3 {[%emt 0:00:37]} Ba6 {[%emt 0:00:10]} 5. b3 {[%emt 0:00:24]} Bb4+ {[%emt 0:00:11]} 6. Bd2 {[%emt 0:00:11]} Be7 {[%emt 0:00:08]} 7. Bg2 {[%emt 0:00:09]} d5 {[%emt 0:00:10]} 8. cxd5 {[%emt 0:00:40]} exd5 {[%emt 0:00:10]} 9. Nc3 {[%emt 0:00:49]} O-O {[%emt 0:00:13]} 10. O-O {[%emt 0:00:07]} Bb7 {[%emt 0:00:12] 10...Nbd7 is a critical line.} 11. Qb1 {[%emt 0:00:52] E15: Queen's Indian: 4 g3 sidelines, 4 g3 Ba6 and 4 g3 Bb7 early deviations.} c5 {[%emt 0:08:15]} 12. Rd1 {[%emt 0:01:10] [#]} Qc8 $146 {[%emt 0:05:49]} ({Predecessor:} 12... Nbd7 13. a4 Re8 14. a5 bxa5 15. Qa2 cxd4 16. Nb5 a6 17. Nbxd4 Bb4 18. Bxb4 axb4 19. Qa5 Qxa5 20. Rxa5 Ne4 21. Ne1 Nc3 22. Rd2 Nf8 23. Nd3 Ne6 24. Nxe6 {½-½ (24) Lins,T (2440)-Acevedo Villalba,A (2524) ICCF email 2017}) 13. dxc5 {[%emt 0:04:21]} bxc5 {[%emt 0:01:28]} 14. Ng5 {[%emt 0:10:55][%cal Oc3d5]} Rd8 {[%emt 0:09:12]} 15. e4 {[%emt 0:23:23][%cal Be2e4,Be4e5][%mdl 32]} h6 {[%emt 0:02:31]} 16. e5 {[%emt 0:05:59]} hxg5 {[%emt 0:01:16]} 17. Bxg5 {[%emt 0:00:10][%mdl 64] Pin} d4 {[%emt 0:06:50] ...Bxg2 is the strong threat.} 18. Bxb7 {[%emt 0:00:27]} Qxb7 {[%emt 0:00:21]} 19. exf6 {[%emt 0:00:04]} gxf6 {[%emt 0:00:32]} 20. Bh6 {[%emt 0:00:15][%cal Ob1f5]} Nc6 {[%emt 0:25:33][%cal Bb8c6,Bc6e5,Be5g6][%mdl 32]} (20... dxc3 $2 21. Qf5 Qd5 22. Rxd5 $18) 21. Qf5 {[%emt 0:05:11] Qg4+ would kill now.} Ne5 {[%emt 0:05:01] Inhibits Qg4+.} 22. Ne4 {[%emt 0:00:49]} Qc6 {[%emt 0:00:13]} 23. Nd2 {[%emt 0:06:13]} a5 {[%emt 0:03:44]} 24. Bf4 {[%emt 0:04:41]} (24. Qh5 $14) 24... Ng6 $11 {[%emt 0:06:50]} 25. Re1 {[%emt 0:03:26]} a4 {[%emt 0:02:41]} 26. Rac1 {[%emt 0:02:49]} axb3 $40 {[%emt 0:01:28][%mdl 128] Black mounts an attack.} 27. axb3 {[%emt 0:00:08]} Qd7 {[%emt 0:04:51]} 28. Qe4 {[%emt 0:04:58]} Kg7 {[%emt 0:00:47]} 29. b4 {[%emt 0:03:54]} Re8 {[%emt 0:06:20] Threatens to win with ...c4.} (29... Nxf4 30. Qxf4 Bd6 31. Qf3 cxb4 32. Re4 $11) 30. bxc5 {[%emt 0:02:26] [#]} Bxc5 {[%emt 0:00:13]} 31. Qf3 {[%emt 0:01:02] Strongly threatening Rxe8.} Ra3 {[%emt 0:02:26]} 32. Qg2 $2 {[%emt 0:03:22]} (32. Nb3 $1 $11 Rxe1+ 33. Rxe1) 32... Rxe1+ $19 {[%emt 0:00:21]} 33. Rxe1 {[%emt 0:00:02]} Bb4 $1 {[%emt 0:00:20]} 34. Rb1 $2 {[%emt 0:03:46]} (34. Rf1 {is tougher.}) 34... Bxd2 {[%emt 0:01:39]} 35. Bxd2 {[%emt 0:00:02]} Ne5 {[%emt 0:02:06]} 36. Bf4 {[%emt 0:04:04]} (36. f4 $142 Nf3+ 37. Kh1) 36... Nf3+ {[%emt 0:00:15]} 37. Kh1 {[%emt 0:00:06]} Qf5 {[%emt 0:00:17]} 38. Rc1 {[%emt 0:03:21]} Qd5 $2 {[%emt 0:02:35]} (38... Qe6 {aiming for ...Ne1.} 39. Qf1 d3) 39. Qh3 {[%emt 0:02:06] White wants to mate with Qh6+.} Rc3 $1 {[%emt 0:02:25]} (39... Ng5+ 40. Qg2 Qf5 41. Bxg5 fxg5 42. f4 $15) 40. Ra1 {[%emt 0:04:45] [#]} d3 $1 {[%emt 0:01:13] Hoping for ...d2.} (40... Ng5+ 41. Qg2 Qf5 42. Bxg5 fxg5 43. Rd1 $17) 41. Qg4+ {[%emt 0:31:17]} ({Avoid the trap} 41. Qh6+ $2 Kg8 42. Qh3 (42. Qxf6 $2 {is a self mate.} Nh4+ 43. f3 Qxf3+ 44. Kg1 Qg2#) 42... d2 43. Bxd2 Nxd2+ $19) 41... Ng5+ {[%emt 0:09:10]} 42. Kg1 {[%emt 0:00:00] [#]} Qd4 $2 {[%emt 0:04:14]} (42... d2 $1 $19 43. Bxd2 (43. h4 $2 Qe4 $19) 43... Qxd2) 43. h4 {[%emt 0:00:00]} Rc2 {[%emt 0:08:01][%csl LRa1,LRf2]} 44. Rf1 {[%emt 0:00:00]} Rxf2 {[%emt 0:04:29]} 45. Rxf2 {[%emt 0:00:00]} d2 $1 {[%emt 0:00:09]} 46. Qd1 {[%emt 0:00:00]} Ne4 {[%emt 0:00:27][%mdl 64] Pin} 47. Qxd2 {[%emt 0:00:00]} Nxd2 $17 {[%emt 0:00:21]} 48. Bxd2 $11 {[%emt 0:00:00][%mdl 4096] Endgame KQ-KRB} Kg6 {[%emt 0:00:59]} 49. Kg2 {[%emt 0:00:00]} Qe4+ {[%emt 0:00:06]} 50. Kh2 {[%emt 0:00:00]} f5 {[%emt 0:00:14]} 51. Bf4 {[%emt 0:00:00]} Qe1 {[%emt 0:00:12]} 52. Kg2 {[%emt 0:00:00]} Qd1 {[%emt 0:00:59]} 53. Rd2 {[%emt 0:00:00]} Qb1 {[%emt 0:00:41]} 54. Rf2 {[%emt 0:00:00]} Qe1 {[%emt 0:00:10]} 55. Bd2 {[%emt 0:00:00]} Qe4+ {[%emt 0:00:24]} 56. Kh2 {[%emt 0:00:00]} Kh5 {[%emt 0:00:07]} 57. Bg5 {[%emt 0:00:00]} Qe6 {[%emt 0:00:55]} 58. Bd2 {[%emt 0:00:00]} f6 {[%emt 0:00:20]} 59. Kg2 {[%emt 0:00:00]} Qd5+ {[%emt 0:00:37]} 60. Kh2 {[%emt 0:00:00]} Qe4 {[%emt 0:00:35]} 61. Kg1 {[%emt 0:00:00]} Qd4 {[%emt 0:00:30]} 62. Kg2 {[%emt 0:00:00]} Qc5 {[%emt 0:00:10]} 63. Bf4 {[%emt 0:00:00]} Qd5+ {[%emt 0:02:31]} 64. Kh2 {[%emt 0:00:00]} Qb3 {[%emt 0:01:09]} 65. Bd2 {[%emt 0:00:00]} Qd3 {[%emt 0:00:10]} 66. Kg2 {[%emt 0:00:00]} Qc2 {[%emt 0:02:06]} 67. Bf4 {[%emt 0:00:00]} Qd1 {[%emt 0:02:04]} 68. Bd2 {[%emt 0:00:00]} Kg6 {[%emt 0:00:17]} 69. Bf4 {[%emt 0:00:00]} Qd5+ {[%emt 0:01:19]} 70. Kh2 {[%emt 0:00:00]} Kh5 {[%emt 0:00:12]} 71. Bd2 $1 {[%emt 0:00:00]} Qd3 {[%emt 0:00:31] Inhibits Be3.} 72. Kg2 $1 {[%emt 0:00:00]} f4 {[%emt 0:00:45]} (72... Kg6 $15) 73. Bxf4 {[%emt 0:00:00] The position is equal.} Kg4 {[%emt 0:00:07]} 74. Kh2 {[%emt 0:00:00]} Qd4 {[%emt 0:01:16][%mdl 1024] Black has compensation.} 75. Kg2 {[%emt 0:00:00] Whites escaped into a draw.  Weighted Error Value: White=0.27 (precise) /Black=0.18 (very precise)} 1/2-1/2

[Event "44th Chess Olympiad Open 2022"]
[Site "Chennai"]
[Date "2022.08.08"]
[Round "10.15"]
[White "Mchedlishvili, Mikheil"]
[Black "Cruz, Cristhian"]
[Result "1/2-1/2"]
[ECO "D35"]
[WhiteElo "2593"]
[BlackElo "2579"]
[Annotator "TA"]
[PlyCount "88"]
[EventDate "2022.07.29"]
[EventType "team-tourn"]
[EventCountry "IND"]
[SourceTitle "playchess.com"]
[Source "ChessBase"]
[SourceQuality "1"]
[WhiteTeam "Georgia"]
[BlackTeam "Peru"]
[WhiteTeamCountry "GEO"]
[BlackTeamCountry "PER"]
[TimeControl "40/5400+30:1800+30"]

{[%evp 17,88,42,33,16,17,15,21,20,30,8,14,0,17,-6,0,-6,-12,-20,-7,-13,0,-35,-28,-55,-54,-72,-70,-86,-75,-91,-93,-124,-97,-199,-132,-128,-145,-155,-144,-152,-142,-171,-183,-186,-175,-179,-158,-233,-241,-241,-236,-252,-234,-248,-251,-245,-233,-202,-133,-142,-57,-160,-87,-96,-101,-166,-38,-41,0,-146,0,-66,0]} 1. d4 {[%emt 0:00:07]} Nf6 {[%emt 0:00:32]} 2. c4 {[%emt 0:00:34]} e6 {[%emt 0:00:21]} 3. Nc3 {[%emt 0:00:27]} d5 {[%emt 0:00:37]} 4. cxd5 {[%emt 0:02:12]} exd5 {[%emt 0:02:57]} 5. Bg5 {[%emt 0:00:48]} Nbd7 {[%emt 0:02:00]} 6. e3 {[%emt 0:00:51]} Be7 {[%emt 0:02:16]} 7. Bd3 {[%emt 0:01:06]} c6 {[%emt 0:00:44]} 8. Nge2 {[%emt 0:02:00]} Nh5 {[%emt 0:02:20] 8...Nf8 gains popularity.} 9. Bxe7 {[%emt 0:01:32]} Qxe7 {[%emt 0:00:03]} 10. O-O {[%emt 0:02:50] D35: Queen's Gambit Declined: Exchange Variation.} g6 {[%emt 0:02:37] has lost popularity (10...0-0).} 11. Qd2 {[%emt 0:02:41]} O-O {[%emt 0:06:30]} 12. f3 {[%emt 0:03:30] The position is equal.} Nb6 {[%emt 0:02:47]} 13. e4 {[%emt 0:04:56]} Be6 {[%emt 0:02:49] [#]} 14. Rfe1 $146 {[%emt 0:10:27]} ({Predecessor:} 14. e5 f6 15. g4 Ng7 16. Rae1 f5 17. h3 Qh4 18. Kg2 fxg4 19. hxg4 Bxg4 20. fxg4 Qxg4+ {1-0 (32) Karthikeyan,P (2397)-Singh,S (2006) Guwahati 2022}) 14... Rad8 {[%emt 0:07:40]} 15. e5 {[%emt 0:10:18]} f6 {[%emt 0:05:32]} 16. Ng3 {[%emt 0:01:24]} Ng7 {[%emt 0:05:21]} 17. Rad1 {[%emt 0:02:55]} fxe5 {[%emt 0:15:14]} 18. Rxe5 {[%emt 0:02:00]} Qf6 {[%emt 0:01:14]} (18... Qh4 {with more complications.} 19. Nce2 Nc8 20. Qa5 a6) 19. Qf2 {[%emt 0:11:59]} Nc8 {[%emt 0:04:57]} 20. Ree1 {[%emt 0:11:40]} Nd6 {[%emt 0:02:02]} 21. Bc2 {[%emt 0:05:19]} Rde8 {[%emt 0:08:04]} 22. a4 {[%emt 0:08:18]} h5 {[%emt 0:02:07]} 23. Nf1 {[%emt 0:01:20]} g5 {[%emt 0:01:09]} 24. Qg3 {[%emt 0:03:49]} Bf5 {[%emt 0:06:08]} 25. Bb3 {[%emt 0:00:19]} (25. Rxe8 $17 Rxe8 26. Qf2) 25... Bg6 {[%emt 0:02:58]} (25... h4 $19 26. Qf2 Rxe1 27. Rxe1 h3) 26. Rxe8 {[%emt 0:02:04]} Rxe8 {[%emt 0:00:17]} 27. Qf2 {[%emt 0:00:17]} Ne6 $1 {[%emt 0:02:03]} 28. Ne2 {[%emt 0:01:10]} Kg7 {[%emt 0:02:59]} 29. Ne3 {[%emt 0:02:31]} Nf4 $36 {[%emt 0:03:10][%mdl 2048] Black is on the roll.} 30. Nxf4 {[%emt 0:02:28]} gxf4 {[%emt 0:00:03]} (30... Qxf4 31. Nc2 $17) 31. Nf1 {[%emt 0:00:36]} h4 {[%emt 0:02:58][%cal Bh5h4,Bh4h3][%mdl 32]} 32. Bc2 {[%emt 0:00:37]} (32. h3 $17) 32... Bxc2 $1 $19 {[%emt 0:01:26]} 33. Qxc2 {[%emt 0:00:03]} h3 $1 {[%emt 0:00:29]} 34. g3 {[%emt 0:03:07]} fxg3 {[%emt 0:03:53]} 35. Nxg3 {[%emt 0:00:33] aiming for Nh5+.} Qxf3 {[%emt 0:00:59]} 36. Rf1 {[%emt 0:00:30]} Qe3+ {[%emt 0:00:22]} 37. Kh1 {[%emt 0:00:53]} Re6 {[%emt 0:00:25]} 38. Qd1 {[%emt 0:00:35]} ({Wrong is} 38. Nf5+ $2 Nxf5 39. Qxf5 Qe4+ 40. Qxe4 Rxe4 $19) 38... Rg6 {[%emt 0:00:54] Prevents Qg4.} (38... Qg5 $1 $17 39. b4 (39. Qf3 Kh7 $17) 39... Rf6) 39. Qh5 {[%emt 0:00:18]} ({White should try} 39. Rf4 $15) 39... Qe6 {[%emt 0:00:26]} (39... Rxg3 $2 40. hxg3 Qe4+ 41. Rf3 $18) ({Black should play} 39... Qxd4 40. Qxh3 Qg4) 40. Qh4 {[%emt 0:00:23]} Kg8 $1 {[%emt 0:00:29]} 41. Qd8+ {[%emt 0:03:31] [#]} (41. Qf4 $17 {was worth a try.}) 41... Qe8 {[%emt 0:17:17]} (41... Ne8 $1 $19 {[%cal Og6g3] ...Rxg3! is the strong threat.} 42. Qh4 Rf6 43. Qg5+ Kf7) 42. Qh4 $15 {[%emt 0:01:04]} Qe6 {[%emt 0:00:21]} (42... Qe3 $15) 43. Qd8+ $1 $17 {[%emt 0:00:06] [#]} Qe8 {[%emt 0:07:27]} (43... Ne8 $1 $17 {[%cal Og6g3] Threatens to win with ...Rxg3!} 44. Qb8 Rg4) 44. Qh4 $15 {[%emt 0:00:08]} Qe6 {[%emt 0:01:08] Weighted Error Value: White=0.17 (very precise) /Black=0.22 (precise)} ({Better is} 44... Qe3 $15) 1/2-1/2

[Event "44th Chess Olympiad Open 2022"]
[Site "Chennai"]
[Date "2022.08.08"]
[Round "10.15"]
[White "Pantsulaia, Levan"]
[Black "Vera Siguenas, Deivy"]
[Result "1-0"]
[ECO "A11"]
[WhiteElo "2581"]
[BlackElo "2503"]
[Annotator "TA"]
[PlyCount "53"]
[EventDate "2022.07.29"]
[EventType "team-tourn"]
[EventCountry "IND"]
[SourceTitle "playchess.com"]
[Source "ChessBase"]
[SourceQuality "1"]
[WhiteTeam "Georgia"]
[BlackTeam "Peru"]
[WhiteTeamCountry "GEO"]
[BlackTeamCountry "PER"]
[TimeControl "40/5400+30:1800+30"]

{[%evp 10,53,27,27,24,20,29,37,25,29,18,32,37,41,37,25,31,0,0,-15,81,90,87,81,85,87,104,106,103,104,106,106,137,141,125,131,118,79,325,300,402,408,395,410,383,381]} 1. Nf3 {[%emt 0:00:07]} Nf6 {[%emt 0:00:05]} 2. g3 {[%emt 0:00:20]} d5 {[%emt 0:00:13]} 3. Bg2 {[%emt 0:00:14]} Bf5 {[%emt 0:00:24]} 4. c4 {[%emt 0:00:29]} c6 {[%emt 0:00:13]} 5. Qb3 {[%emt 0:00:34]} Qb6 {[%emt 0:00:48]} 6. d3 {[%emt 0:00:10]} e6 {[%emt 0:01:43] A11: English Opening: 1...c6.} 7. Be3 {[%emt 0:00:20][%cal Bc1e3,Be3d4,Bd4c3][%mdl 32]} Qb4+ {[%emt 0:06:23]} 8. Nbd2 {[%emt 0:01:29]} Nbd7 {[%emt 0:01:18] White is slightly better.} 9. O-O {[%emt 0:12:18]} h6 {[%emt 0:08:32] [#]} 10. Bd4 $146 {[%emt 0:16:30]} ({Predecessor:} 10. Qc2 Be7 11. a3 Qd6 12. cxd5 cxd5 13. Nd4 O-O 14. Nxf5 exf5 15. b4 Rac8 16. Qb2 {½-½ (35) Pollmann,S (2110)-Krajina,D (2255) Germany 2018}) 10... Qxb3 {[%emt 0:00:00]} 11. axb3 {[%emt 0:01:24]} a6 {[%emt 0:01:53]} 12. Bc3 {[%emt 0:00:55]} Be7 {[%emt 0:03:50]} 13. e4 {[%emt 0:14:15]} (13. Rfe1 $14 {was preferrable.}) 13... dxe4 $11 {[%emt 0:01:47]} 14. dxe4 {[%emt 0:00:14]} Bh7 {[%emt 0:01:33]} (14... Bxe4 $11 {remains equal.} 15. Nxe4 Nxe4) 15. Rfe1 $16 {[%emt 0:06:21]} Nc5 {[%emt 0:04:58]} 16. Ne5 {[%emt 0:00:07]} Rd8 {[%emt 0:08:29][%cal Od8d2]} 17. Re2 {[%emt 0:13:38]} Nd3 {[%emt 0:13:55] Prevents b4.} 18. Nxd3 {[%emt 0:00:32]} Rxd3 {[%emt 0:00:05]} 19. b4 {[%emt 0:01:03]} O-O {[%emt 0:00:37]} 20. e5 {[%emt 0:00:37]} Ne8 {[%emt 0:00:59]} 21. Nb3 $1 {[%emt 0:00:45][%cal Bd2b3,Bb3a5,Ba5b7][%mdl 32] Strongly threatening Na5.} Nc7 {[%emt 0:06:56]} 22. Na5 {[%emt 0:00:11]} Rb8 {[%emt 0:00:06]} 23. Ree1 {[%emt 0:00:47] Rad1 is the strong threat.} Bd8 $2 {[%emt 0:03:50] Black cannot hold the game after this.} (23... Na8 $16 {is a better defense.}) 24. Red1 {[%emt 0:00:39]} Ne8 {[%emt 0:02:46] [#]} 25. Nxb7 {[%emt 0:00:37][%mdl 512] White is winning.} Rxb7 {[%emt 0:00:03]} 26. Rxd3 {[%emt 0:00:08]} Bxd3 {[%emt 0:00:05] [#]} 27. Rd1 $1 {[%emt 0:00:21] Weighted Error Value: White=0.04 (flawless) /Black=0.30} 1-0